[Event "Polofinale MCR juniorek 2023"]
[Site "Czech Republic"]
[Date "2023.11.12"]
[Round "2.8"]
[White "Petirova, Iva"]
[Black "Bartova, Hana"]
[Result "0-1"]
[TimeControl "90 min per 40 moves + 15 min + 30 sec / move from move 1"]
[WhiteFideId "23741961"]
[BlackFideId "23732695"]
[WhiteElo "1636"]
[BlackElo "1270"]

1. e4 {[%clk 01:30:57]} {[%emt 00:00:02]} e6 {[%clk 01:30:27]} {[%emt
00:00:33]} 2. d4 {[%clk 01:30:57]} {[%emt 00:00:30]} d5 {[%clk 01:30:51]}
{[%emt 00:00:06]} 3. Nc3 {[%clk 01:29:48]} {[%emt 00:01:39]} Nf6 {[%clk
01:25:02]} {[%emt 00:06:19]} 4. e5 {[%clk 01:27:22]} {[%emt 00:02:57]} Nfd7
{[%clk 01:25:17]} {[%emt 00:00:14]} 5. Nf3 {[%clk 01:26:08]} {[%emt 00:01:43]}
a6 {[%clk 01:20:34]} {[%emt 00:05:14]} 6. Bd3 {[%clk 01:21:04]} {[%emt
00:05:34]} c5 {[%clk 01:19:11]} {[%emt 00:01:53]} 7. dxc5 {[%clk 01:20:28]}
{[%emt 00:01:06]} Nc6 {[%clk 01:05:24]} {[%emt 00:14:17]} 8. O-O {[%clk
01:16:57]} {[%emt 00:04:00]} Bxc5 {[%clk 01:02:01]} {[%emt 00:03:54]} 9. Re1
{[%clk 01:13:54]} {[%emt 00:03:33]} h6 {[%clk 00:46:04]} {[%emt 00:16:27]} 10.
Nxd5 {[%clk 01:06:05]} {[%emt 00:08:18]} exd5 {[%clk 00:38:17]} {[%emt
00:08:17]} 11. e6 {[%clk 01:06:29]} {[%emt 00:00:06]} Nf6 {[%clk 00:17:56]}
{[%emt 00:20:51]} 12. exf7+ {[%clk 00:58:00]} {[%emt 00:08:59]} Kxf7 {[%clk
00:15:58]} {[%emt 00:02:28]} 13. Nh4 {[%clk 00:45:56]} {[%emt 00:12:34]} g5
{[%clk 00:11:37]} {[%emt 00:04:51]} 14. Nf5 {[%clk 00:37:54]} {[%emt 00:08:31]}
Bxf5 {[%clk 00:10:38]} {[%emt 00:01:28]} 15. Bxf5 {[%clk 00:38:18]} {[%emt
00:00:07]} Re8 {[%clk 00:10:10]} {[%emt 00:00:57]} 16. Be3 {[%clk 00:29:46]}
{[%emt 00:09:02]} d4 {[%clk 00:06:42]} {[%emt 00:03:59]} 17. Bd2 {[%clk
00:25:25]} {[%emt 00:04:52]} Qd5 {[%clk 00:05:54]} {[%emt 00:01:14]} 18. Bd3
{[%clk 00:21:34]} {[%emt 00:03:54]} Rxe1+ {[%clk 00:04:36]} {[%emt 00:01:49]}
19. Qxe1 {[%clk 00:22:29]} {[%emt 00:00:04]} Re8 {[%clk 00:04:25]} {[%emt
00:00:41]} 20. Qf1 {[%clk 00:22:00]} {[%emt 00:00:58]} Kg7 {[%clk 00:04:32]}
{[%emt 00:00:22]} 21. c3 {[%clk 00:19:41]} {[%emt 00:02:50]} dxc3 {[%clk
00:03:20]} {[%emt 00:01:42]} 22. Bxc3 {[%clk 00:20:05]} {[%emt 00:00:06]} Bd4
{[%clk 00:03:34]} {[%emt 00:00:16]} 23. Bxd4 {[%clk 00:15:17]} {[%emt
00:05:18]} Qxd4 {[%clk 00:03:56]} {[%emt 00:00:08]} 24. Rc1 {[%clk 00:13:18]}
{[%emt 00:02:30]} Qd7 {[%clk 00:01:27]} {[%emt 00:02:57]} 25. Rd1 {[%clk
00:11:04]} {[%emt 00:02:45]} Qe6 {[%clk 00:01:27]} {[%emt 00:00:27]} 26. b3
{[%clk 00:10:57]} {[%emt 00:00:41]} Ne5 {[%clk 00:01:29]} {[%emt 00:00:27]} 27.
f4 {[%clk 00:09:05]} {[%emt 00:02:22]} Nxd3 {[%clk 00:01:15]} {[%emt 00:00:44]}
0-1

[Event "Polofinale MCR juniorek 2023"]
[Site "Czech Republic"]
[Date "2023.11.12"]
[Round "2.9"]
[White "Vavrinkova, Marie"]
[Black "Brezikova, Beata"]
[Result "0-1"]
[TimeControl "90 min per 40 moves + 15 min + 30 sec / move from move 1"]
[WhiteFideId "392154"]
[BlackFideId "23727250"]
[WhiteElo "1492"]
[BlackElo "1622"]

1. d4 {[%clk 01:30:56]} {[%emt 00:00:04]} d5 {[%clk 01:30:56]} {[%emt
00:00:04]} 2. Nf3 {[%clk 01:30:58]} {[%emt 00:00:28]} Nf6 {[%clk 01:31:19]}
{[%emt 00:00:07]} 3. c4 {[%clk 01:31:06]} {[%emt 00:00:23]} c6 {[%clk
01:31:35]} {[%emt 00:00:14]} 4. cxd5 {[%clk 01:31:09]} {[%emt 00:00:27]} cxd5
{[%clk 01:31:52]} {[%emt 00:00:13]} 5. Nc3 {[%clk 01:31:08]} {[%emt 00:00:31]}
Nc6 {[%clk 01:31:21]} {[%emt 00:01:02]} 6. Bf4 {[%clk 01:30:07]} {[%emt
00:01:31]} Bf5 {[%clk 01:28:45]} {[%emt 00:03:05]} 7. e3 {[%clk 01:28:09]}
{[%emt 00:02:27]} e6 {[%clk 01:26:31]} {[%emt 00:02:45]} 8. Bb5 {[%clk
01:26:34]} {[%emt 00:02:05]} Be7 {[%clk 01:21:04]} {[%emt 00:05:56]} 9. Ne5
{[%clk 01:21:37]} {[%emt 00:05:27]} Rc8 {[%clk 01:15:48]} {[%emt 00:05:46]} 10.
Qa4 {[%clk 01:15:26]} {[%emt 00:06:42]} Qb6 {[%clk 01:12:03]} {[%emt 00:04:15]}
11. Bg5 {[%clk 01:09:27]} {[%emt 00:06:28]} a6 {[%clk 01:05:36]} {[%emt
00:06:58]} 12. Bxc6+ {[%clk 01:08:11]} {[%emt 00:01:45]} bxc6 {[%clk 01:03:31]}
{[%emt 00:02:35]} 13. O-O {[%clk 01:05:36]} {[%emt 00:03:04]} h6 {[%clk
01:00:35]} {[%emt 00:03:26]} 14. Bh4 {[%clk 01:02:26]} {[%emt 00:03:40]} g5
{[%clk 00:58:04]} {[%emt 00:03:01]} 15. Bg3 {[%clk 01:02:11]} {[%emt 00:00:45]}
O-O {[%clk 00:57:18]} {[%emt 00:01:15]} 16. Rfc1 {[%clk 00:59:09]} {[%emt
00:03:33]} c5 {[%clk 00:51:51]} {[%emt 00:05:57]} 17. Nd7 {[%clk 00:53:52]}
{[%emt 00:05:47]} Nxd7 {[%clk 00:51:12]} {[%emt 00:01:08]} 18. Qxd7 {[%clk
00:54:07]} {[%emt 00:00:15]} Qd8 {[%clk 00:45:13]} {[%emt 00:06:29]} 19. Qa4
{[%clk 00:45:15]} {[%emt 00:09:23]} cxd4 {[%clk 00:34:59]} {[%emt 00:10:44]} 20.
Qxd4 {[%clk 00:42:54]} {[%emt 00:02:51]} Bf6 {[%clk 00:32:53]} {[%emt
00:02:36]} 21. Qd2 {[%clk 00:40:45]} {[%emt 00:02:39]} Qb6 {[%clk 00:26:47]}
{[%emt 00:06:36]} 22. Nd1 {[%clk 00:38:36]} {[%emt 00:02:40]} Kg7 {[%clk
00:21:04]} {[%emt 00:06:13]} 23. Rxc8 {[%clk 00:35:20]} {[%emt 00:03:46]} Rxc8
{[%clk 00:21:22]} {[%emt 00:00:12]} 24. Rc1 {[%clk 00:35:06]} {[%emt 00:00:44]}
Rxc1 {[%clk 00:18:15]} {[%emt 00:03:37]} 25. Qxc1 {[%clk 00:35:23]} {[%emt
00:00:13]} Qa5 {[%clk 00:16:28]} {[%emt 00:02:18]} 26. Nc3 {[%clk 00:32:38]}
{[%emt 00:03:14]} e5 {[%clk 00:07:37]} {[%emt 00:09:21]} 27. a3 {[%clk
00:22:33]} {[%emt 00:10:36]} d4 {[%clk 00:07:20]} {[%emt 00:00:47]} 28. exd4
{[%clk 00:21:12]} {[%emt 00:01:50]} exd4 {[%clk 00:07:23]} {[%emt 00:00:27]} 29.
Na2 {[%clk 00:20:49]} {[%emt 00:00:53]} d3 {[%clk 00:05:15]} {[%emt 00:02:39]}
30. Nb4 {[%clk 00:19:52]} {[%emt 00:01:26]} Qd8 {[%clk 00:04:17]} {[%emt
00:01:28]} 31. Qd2 {[%clk 00:19:08]} {[%emt 00:01:14]} a5 {[%clk 00:03:56]}
{[%emt 00:00:52]} 32. Na2 {[%clk 00:15:15]} {[%emt 00:04:23]} Qb6 {[%clk
00:03:48]} {[%emt 00:00:38]} 33. Nc3 {[%clk 00:14:45]} {[%emt 00:01:00]} Qb3
{[%clk 00:03:20]} {[%emt 00:00:58]} 34. Kf1 {[%clk 00:13:57]} {[%emt 00:01:17]}
Bg6 {[%clk 00:01:11]} {[%emt 00:02:39]} 35. f3 {[%clk 00:11:38]} {[%emt
00:02:48]} Qc4 {[%clk 00:01:07]} {[%emt 00:00:33]} 36. Bf2 {[%clk 00:09:03]}
{[%emt 00:03:06]} Be5 {[%clk 00:01:06]} {[%emt 00:00:32]} 37. Ke1 {[%clk
00:07:22]} {[%emt 00:02:10]} Bf4 {[%clk 00:01:03]} {[%emt 00:00:33]} 38. Be3
{[%clk 00:06:41]} {[%emt 00:01:11]} Bxh2 {[%clk 00:01:02]} {[%emt 00:00:31]} 39.
Qf2 {[%clk 00:04:55]} {[%emt 00:02:15]} Be5 {[%clk 00:01:00]} {[%emt 00:00:33]}
40. Bd2 {[%clk 00:04:59]} {[%emt 00:00:26]} Qb3 {[%clk 00:00:54]} {[%emt
00:00:35]} 41. Qc5 {[%clk 00:02:57]} {[%emt 00:02:31]} Bg3+ {[%clk 00:11:29]}
{[%emt 00:05:26]} 42. Kf1 {[%clk 00:19:14]} {[%emt 00:00:14]} Qxb2 {[%clk
00:09:20]} {[%emt 00:02:39]} 43. Ne4 {[%clk 00:14:43]} {[%emt 00:05:01]} Qa1+
{[%clk 00:07:32]} {[%emt 00:02:19]} 44. Qc1 {[%clk 00:14:19]} {[%emt 00:00:54]}
Qxc1+ {[%clk 00:07:37]} {[%emt 00:00:26]} 45. Bxc1 {[%clk 00:14:47]} {[%emt
00:00:02]} Bxe4 {[%clk 00:06:51]} {[%emt 00:01:16]} 46. fxe4 {[%clk 00:14:28]}
{[%emt 00:00:48]} a4 {[%clk 00:06:08]} {[%emt 00:01:13]} 47. Bb2+ {[%clk
00:14:06]} {[%emt 00:00:52]} Kf8 {[%clk 00:06:20]} {[%emt 00:00:18]} 48. Bd4
{[%clk 00:13:43]} {[%emt 00:00:54]} Ke8 {[%clk 00:06:06]} {[%emt 00:00:44]} 49.
Bg7 {[%clk 00:13:06]} {[%emt 00:01:07]} h5 {[%clk 00:06:23]} {[%emt 00:00:13]}
50. Bf6 {[%clk 00:13:25]} {[%emt 00:00:10]} g4 {[%clk 00:06:44]} {[%emt
00:00:10]} 0-1

[Event "Polofinale MCR juniorek 2023"]
[Site "Czech Republic"]
[Date "2023.11.12"]
[Round "2.10"]
[White "Nova, Anezka"]
[Black "Taborska, Aneta"]
[Result "1/2-1/2"]
[TimeControl "90 min per 40 moves + 15 min + 30 sec / move from move 1"]
[WhiteFideId "23727144"]
[BlackFideId "23733039"]
[WhiteElo "1578"]
[BlackElo "1165"]

1. e4 {[%clk 01:30:57]} {[%emt 00:00:02]} d5 {[%clk 01:30:42]} {[%emt
00:00:17]} 2. exd5 {[%clk 01:31:21]} {[%emt 00:00:07]} Qxd5 {[%clk 01:30:35]}
{[%emt 00:00:37]} 3. Nc3 {[%clk 01:31:45]} {[%emt 00:00:07]} Qa5 {[%clk
01:30:30]} {[%emt 00:00:34]} 4. d4 {[%clk 01:32:00]} {[%emt 00:00:15]} Nf6
{[%clk 01:30:25]} {[%emt 00:00:34]} 5. Bd2 {[%clk 01:31:06]} {[%emt 00:01:25]}
Nc6 {[%clk 01:22:53]} {[%emt 00:07:51]} 6. Nb5 {[%clk 01:13:04]} {[%emt
00:18:43]} Qb6 {[%clk 01:21:39]} {[%emt 00:01:44]} 7. Bf4 {[%clk 00:59:49]}
{[%emt 00:13:45]} Nd5 {[%clk 01:19:41]} {[%emt 00:02:28]} 8. Bg3 {[%clk
00:57:11]} {[%emt 00:03:08]} a6 {[%clk 01:18:23]} {[%emt 00:01:48]} 9. Bc4
{[%clk 00:48:40]} {[%emt 00:09:02]} axb5 {[%clk 01:17:36]} {[%emt 00:01:17]} 10.
Bxd5 {[%clk 00:48:55]} {[%emt 00:00:14]} Nxd4 {[%clk 01:16:52]} {[%emt
00:01:13]} 11. Nf3 {[%clk 00:45:25]} {[%emt 00:04:00]} Nf5 {[%clk 01:15:58]}
{[%emt 00:01:16]} 12. Bf4 {[%clk 00:39:40]} {[%emt 00:06:24]} e6 {[%clk
01:16:05]} {[%emt 00:00:23]} 13. Be4 {[%clk 00:38:03]} {[%emt 00:02:06]} Nd6
{[%clk 01:15:41]} {[%emt 00:00:53]} 14. Bd3 {[%clk 00:37:08]} {[%emt 00:01:26]}
Bd7 {[%clk 01:15:19]} {[%emt 00:00:53]} 15. Ne5 {[%clk 00:34:41]} {[%emt
00:02:57]} O-O-O {[%clk 01:14:23]} {[%emt 00:01:25]} 16. O-O {[%clk 00:30:18]}
{[%emt 00:04:53]} Qc5 {[%clk 01:09:01]} {[%emt 00:05:51]} 17. Qe2 {[%clk
00:26:26]} {[%emt 00:04:24]} Be7 {[%clk 01:08:40]} {[%emt 00:00:51]} 18. Nxd7
{[%clk 00:25:18]} {[%emt 00:01:38]} Rxd7 {[%clk 01:08:40]} {[%emt 00:00:29]} 19.
Bxd6 {[%clk 00:24:09]} {[%emt 00:01:40]} Rxd6 {[%clk 01:07:14]} {[%emt
00:01:56]} 20. Bxb5 {[%clk 00:24:15]} {[%emt 00:00:24]} Rb6 {[%clk 01:05:29]}
{[%emt 00:02:15]} 21. Bc4 {[%clk 00:20:30]} {[%emt 00:04:14]} Rxb2 {[%clk
01:05:25]} {[%emt 00:00:34]} 22. Bb3 {[%clk 00:20:27]} {[%emt 00:00:33]} Rd8
{[%clk 01:01:57]} {[%emt 00:03:58]} 23. Rad1 {[%clk 00:19:03]} {[%emt
00:01:53]} Bd6 {[%clk 01:01:40]} {[%emt 00:00:48]} 24. Qf3 {[%clk 00:17:35]}
{[%emt 00:01:58]} Qe5 {[%clk 00:59:18]} {[%emt 00:02:50]} 25. g3 {[%clk
00:16:50]} {[%emt 00:01:17]} Rd7 {[%clk 00:58:27]} {[%emt 00:01:21]} 26. Rfe1
{[%clk 00:15:19]} {[%emt 00:02:01]} Qb5 {[%clk 00:55:29]} {[%emt 00:03:23]} 27.
Qc3 {[%clk 00:13:27]} {[%emt 00:02:27]} Be5 {[%clk 00:51:46]} {[%emt 00:04:13]}
28. Qf3 {[%clk 00:10:39]} {[%emt 00:03:16]} Bd4 {[%clk 00:48:39]} {[%emt
00:03:37]} 29. Qe4 {[%clk 00:08:45]} {[%emt 00:02:26]} Qc5 {[%clk 00:46:33]}
{[%emt 00:02:33]} 30. Qf3 {[%clk 00:05:39]} {[%emt 00:03:38]} g5 {[%clk
00:43:54]} {[%emt 00:03:10]} 31. h3 {[%clk 00:05:02]} {[%emt 00:01:07]} h5
{[%clk 00:43:42]} {[%emt 00:00:42]} 32. g4 {[%clk 00:04:07]} {[%emt 00:01:25]}
hxg4 {[%clk 00:41:37]} {[%emt 00:02:36]} 33. hxg4 {[%clk 00:04:32]} {[%emt
00:00:05]} Re7 {[%clk 00:36:58]} {[%emt 00:05:07]} 34. Re4 {[%clk 00:03:08]}
{[%emt 00:01:54]} Rd7 {[%clk 00:35:02]} {[%emt 00:02:28]} 35. Kg2 {[%clk
00:02:51]} {[%emt 00:00:47]} Kb8 {[%clk 00:31:44]} {[%emt 00:03:49]} 36. Qd3
{[%clk 00:02:24]} {[%emt 00:00:57]} e5 {[%clk 00:31:00]} {[%emt 00:01:14]} 37.
Qf3 {[%clk 00:01:58]} {[%emt 00:00:56]} Qc6 {[%clk 00:30:32]} {[%emt 00:00:57]}
38. Qf5 {[%clk 00:01:27]} {[%emt 00:01:02]} f6 {[%clk 00:28:41]} {[%emt
00:02:22]} 39. Qf3 {[%clk 00:00:50]} {[%emt 00:01:08]} Rh7 {[%clk 00:28:26]}
{[%emt 00:00:44]} 40. Qf5 {[%clk 00:00:39]} {[%emt 00:00:41]} Rh6 {[%clk
00:27:51]} {[%emt 00:01:04]} 41. Qf3 {[%clk 00:00:43]} {[%emt 00:00:26]} Rh4
{[%clk 00:27:33]} {[%emt 00:00:47]} 42. Rh1 {[%clk 00:00:43]} {[%emt 00:00:32]}
Rxh1 {[%clk 00:27:35]} {[%emt 00:00:29]} 43. Kxh1 {[%clk 00:01:10]} {[%emt
00:00:03]} Rb1+ {[%clk 00:27:35]} {[%emt 00:00:31]} 44. Kg2 {[%clk 00:01:30]}
{[%emt 00:00:08]} Qa6 {[%clk 00:24:22]} {[%emt 00:03:39]} 45. Re2 {[%clk
00:01:37]} {[%emt 00:00:28]} Rc1 {[%clk 00:21:42]} {[%emt 00:03:00]} 46. Qe4
{[%clk 00:01:09]} {[%emt 00:01:08]} Bc5 {[%clk 00:16:01]} {[%emt 00:06:10]} 47.
Bc4 {[%clk 00:01:05]} {[%emt 00:00:34]} Qd6 {[%clk 00:15:23]} {[%emt 00:01:07]}
48. Bd3 {[%clk 00:00:56]} {[%emt 00:00:40]} Ra1 {[%clk 00:15:06]} {[%emt
00:00:46]} 49. Qa4 {[%clk 00:00:54]} {[%emt 00:00:33]} Qd5+ {[%clk 00:15:11]}
{[%emt 00:00:25]} 50. Be4 {[%clk 00:00:55]} {[%emt 00:00:30]} Qd1 {[%clk
00:14:53]} {[%emt 00:00:39]} 51. Qe8+ {[%clk 00:01:12]} {[%emt 00:00:21]} Ka7
{[%clk 00:15:00]} {[%emt 00:00:22]} 52. Qa4+ {[%clk 00:01:36]} {[%emt
00:00:08]} Kb8 {[%clk 00:13:21]} {[%emt 00:02:06]} 53. Qe8+ {[%clk 00:01:50]}
{[%emt 00:00:17]} Ka7 {[%clk 00:13:46]} {[%emt 00:00:05]} 54. Qa4+ {[%clk
00:01:39]} {[%emt 00:00:42]} 1/2-1/2

[Event "Polofinale MCR juniorek 2023"]
[Site "Czech Republic"]
[Date "2023.11.12"]
[Round "2.11"]
[White "Stavova, Marketa"]
[Black "Markina, Sofiia"]
[Result "0-1"]
[TimeControl "90 min per 40 moves + 15 min + 30 sec / move from move 1"]
[WhiteFideId "23714824"]
[BlackFideId "23744014"]
[WhiteElo "1433"]
[BlackElo "1563"]

1. e4 {[%clk 01:30:56]} {[%emt 00:00:03]} c6 {[%clk 01:30:53]} {[%emt
00:00:07]} 2. d4 {[%clk 01:31:02]} {[%emt 00:00:23]} d5 {[%clk 01:31:17]}
{[%emt 00:00:07]} 3. exd5 {[%clk 01:31:00]} {[%emt 00:00:32]} cxd5 {[%clk
01:31:38]} {[%emt 00:00:10]} 4. Bd3 {[%clk 01:30:36]} {[%emt 00:00:53]} Nc6
{[%clk 01:31:54]} {[%emt 00:00:15]} 5. Ne2 {[%clk 01:29:55]} {[%emt 00:01:10]}
Nf6 {[%emt 00:00:56]} 6. O-O {[%clk 01:29:18]} {[%emt 00:00:55]} Bg4 {[%clk
01:31:09]} {[%emt 00:01:00]} 7. f3 {[%clk 01:28:39]} {[%emt 00:01:09]} Bh5
{[%clk 01:31:07]} {[%emt 00:00:32]} 8. c3 {[%clk 01:28:08]} {[%emt 00:01:01]}
Bg6 {[%clk 01:30:26]} {[%emt 00:01:11]} 9. Nf4 {[%clk 01:25:16]} {[%emt
00:03:22]} Bxd3 {[%clk 01:29:44]} {[%emt 00:01:13]} 10. Nxd3 {[%clk 01:25:33]}
{[%emt 00:00:12]} e6 {[%clk 01:29:14]} {[%emt 00:00:59]} 11. Re1 {[%clk
01:24:41]} {[%emt 00:01:22]} Bd6 {[%clk 01:28:06]} {[%emt 00:01:38]} 12. Nd2
{[%clk 01:24:03]} {[%emt 00:01:08]} Qc7 {[%clk 01:25:14]} {[%emt 00:03:23]} 13.
Nf1 {[%clk 01:22:47]} {[%emt 00:01:46]} O-O {[%clk 01:20:34]} {[%emt 00:05:09]}
14. Kh1 {[%clk 01:20:05]} {[%emt 00:03:12]} Nd7 {[%clk 01:11:12]} {[%emt
00:09:52]} 15. Qc2 {[%clk 01:16:27]} {[%emt 00:04:08]} Nxd4 {[%clk 01:10:13]}
{[%emt 00:01:29]} 16. Qf2 {[%clk 01:13:19]} {[%emt 00:03:37]} Nc6 {[%clk
01:04:13]} {[%emt 00:06:30]} 17. Be3 {[%clk 01:09:17]} {[%emt 00:04:32]} b6
{[%clk 01:02:20]} {[%emt 00:02:24]} 18. Rad1 {[%clk 01:07:27]} {[%emt
00:02:19]} Rae8 {[%clk 00:43:12]} {[%emt 00:19:39]} 19. Nc1 {[%clk 01:01:45]}
{[%emt 00:06:11]} Nde5 {[%clk 00:35:12]} {[%emt 00:08:30]} 20. b3 {[%clk
00:58:13]} {[%emt 00:04:02]} Ng6 {[%clk 00:30:11]} {[%emt 00:05:31]} 21. Ne2
{[%clk 00:56:25]} {[%emt 00:02:18]} Qb8 {[%clk 00:25:23]} {[%emt 00:05:19]} 22.
Nfg3 {[%clk 00:53:49]} {[%emt 00:03:05]} f5 {[%clk 00:22:54]} {[%emt 00:02:59]}
23. Bc1 {[%clk 00:48:36]} {[%emt 00:05:43]} f4 {[%clk 00:21:55]} {[%emt
00:01:30]} 24. Nf1 {[%clk 00:48:05]} {[%emt 00:01:00]} Bc5 {[%clk 00:20:47]}
{[%emt 00:01:39]} 25. Nd4 {[%clk 00:47:42]} {[%emt 00:00:53]} e5 {[%clk
00:19:06]} {[%emt 00:02:11]} 26. b4 {[%clk 00:47:52]} {[%emt 00:00:20]} Nxb4
{[%clk 00:18:24]} {[%emt 00:01:13]} 27. cxb4 {[%clk 00:47:58]} {[%emt
00:00:23]} Bxd4 {[%clk 00:18:30]} {[%emt 00:00:24]} 28. Qc2 {[%clk 00:44:30]}
{[%emt 00:03:57]} Rc8 {[%clk 00:16:17]} {[%emt 00:02:44]} 29. Qb3 {[%clk
00:44:26]} {[%emt 00:00:33]} Rfd8 {[%clk 00:15:44]} {[%emt 00:01:03]} 30. Bb2
{[%clk 00:43:51]} {[%emt 00:01:05]} Bxb2 {[%clk 00:15:41]} {[%emt 00:00:34]} 31.
Qxb2 {[%clk 00:44:14]} {[%emt 00:00:07]} Qd6 {[%clk 00:12:45]} {[%emt
00:03:25]} 32. Nd2 {[%clk 00:43:04]} {[%emt 00:01:40]} Qf6 {[%clk 00:12:40]}
{[%emt 00:00:34]} 33. Qb3 {[%clk 00:42:48]} {[%emt 00:00:47]} Kh8 {[%clk
00:12:45]} {[%emt 00:00:25]} 34. Rc1 {[%clk 00:42:27]} {[%emt 00:00:51]} Qh4
{[%clk 00:11:25]} {[%emt 00:01:51]} 35. Rf1 {[%clk 00:41:32]} {[%emt 00:01:24]}
Rxc1 {[%clk 00:11:24]} {[%emt 00:00:31]} 36. Rxc1 {[%clk 00:41:51]} {[%emt
00:00:11]} Ne7 {[%clk 00:10:06]} {[%emt 00:01:48]} 37. Qa4 {[%clk 00:40:53]}
{[%emt 00:01:28]} Nf5 {[%clk 00:09:55]} {[%emt 00:00:41]} 38. Nf1 {[%emt
00:02:20]} Nd4 {[%clk 00:08:19]} {[%emt 00:00:28]} 39. Rd1 {[%clk 00:38:55]}
{[%emt 00:02:16]} Qf2 {[%clk 00:07:05]} {[%emt 00:01:44]} 40. Nd2 {[%clk
00:38:21]} {[%emt 00:01:05]} Qe2 {[%emt 00:01:34]} 41. Nf1 {[%clk 00:37:40]}
{[%emt 00:00:30]} b5 {[%clk 00:06:49]} {[%emt 00:00:23]} 0-1

[Event "Polofinale MCR juniorek 2023"]
[Site "Czech Republic"]
[Date "2023.11.13"]
[Round "3.1"]
[White "Stastna, Martina"]
[Black "Dudova, Pavlina"]
[Result "1-0"]
[TimeControl "90 min per 40 moves + 15 min + 30 sec / move from move 1"]
[WhiteFideId "385123"]
[BlackFideId "394629"]
[WhiteElo "1940"]
[BlackElo "1763"]

1. e4 {[%clk 01:30:55]} {[%emt 00:00:03]} e6 {[%clk 01:30:52]} {[%emt
00:00:09]} 2. d3 {[%clk 01:31:04]} {[%emt 00:00:21]} d5 {[%clk 01:31:09]}
{[%emt 00:00:13]} 3. Nd2 {[%clk 01:31:17]} {[%emt 00:00:17]} c5 {[%clk
01:30:14]} {[%emt 00:01:24]} 4. Ngf3 {[%clk 01:30:48]} {[%emt 00:00:57]} Nc6
{[%clk 01:29:27]} {[%emt 00:01:20]} 5. g3 {[%clk 01:29:43]} {[%emt 00:01:35]}
Bd6 {[%clk 01:24:16]} {[%emt 00:05:41]} 6. Bg2 {[%clk 01:28:12]} {[%emt
00:02:01]} Nge7 {[%clk 01:21:38]} {[%emt 00:03:07]} 7. O-O {[%clk 01:25:22]}
{[%emt 00:03:20]} O-O {[%clk 01:18:33]} {[%emt 00:03:35]} 8. Qe2 {[%clk
01:19:33]} {[%emt 00:06:20]} Qc7 {[%clk 01:10:08]} {[%emt 00:08:54]} 9. Re1
{[%clk 01:15:39]} {[%emt 00:04:24]} Ng6 {[%clk 01:07:10]} {[%emt 00:03:29]} 10.
h4 {[%clk 01:08:20]} {[%emt 00:07:49]} Nb4 {[%clk 00:38:59]} {[%emt 00:28:40]}
11. Nf1 {[%clk 01:01:04]} {[%emt 00:07:46]} dxe4 {[%clk 00:34:27]} {[%emt
00:05:03]} 12. dxe4 {[%clk 01:00:13]} {[%emt 00:01:21]} e5 {[%clk 00:31:43]}
{[%emt 00:03:13]} 13. c3 {[%clk 00:59:09]} {[%emt 00:01:35]} Nc6 {[%clk
00:31:08]} {[%emt 00:01:04]} 14. Ne3 {[%clk 00:58:11]} {[%emt 00:01:27]} Be6
{[%clk 00:26:09]} {[%emt 00:05:28]} 15. h5 {[%clk 00:48:34]} {[%emt 00:10:08]}
Nge7 {[%clk 00:26:05]} {[%emt 00:00:33]} 16. h6 {[%clk 00:44:25]} {[%emt
00:04:40]} g6 {[%clk 00:21:23]} {[%emt 00:05:13]} 17. Nh4 {[%clk 00:38:05]}
{[%emt 00:06:50]} Nc8 {[%clk 00:17:20]} {[%emt 00:04:33]} 18. Nhf5 {[%clk
00:34:12]} {[%emt 00:04:24]} Bxf5 {[%clk 00:14:54]} {[%emt 00:02:56]} 19. exf5
{[%clk 00:32:24]} {[%emt 00:02:18]} Be7 {[%clk 00:06:47]} {[%emt 00:08:35]} 20.
Nd5 {[%clk 00:22:54]} {[%emt 00:10:01]} Qd7 {[%clk 00:04:35]} {[%emt 00:02:41]}
21. fxg6 {[%clk 00:19:53]} {[%emt 00:03:32]} fxg6 {[%clk 00:04:38]} {[%emt
00:00:27]} 22. Nxe7+ {[%clk 00:17:58]} {[%emt 00:02:26]} N8xe7 {[%clk
00:04:13]} {[%emt 00:00:55]} 23. Qc4+ {[%clk 00:16:39]} {[%emt 00:01:48]} Kh8
{[%clk 00:03:27]} {[%emt 00:01:15]} 24. Qxc5 {[%clk 00:16:26]} {[%emt
00:00:43]} Qf5 {[%clk 00:02:39]} {[%emt 00:01:18]} 25. Be3 {[%clk 00:12:53]}
{[%emt 00:04:04]} Qf6 {[%clk 00:01:22]} {[%emt 00:01:46]} 26. Rad1 {[%clk
00:10:40]} {[%emt 00:02:44]} Rad8 {[%clk 00:00:50]} {[%emt 00:01:02]} 27. Bc1
{[%clk 00:06:23]} {[%emt 00:04:48]} Nf5 {[%clk 00:00:33]} {[%emt 00:00:47]} 28.
Rxd8 {[%clk 00:05:13]} {[%emt 00:01:41]} Rxd8 {[%clk 00:00:37]} {[%emt
00:00:26]} 29. Bxc6 {[%clk 00:04:19]} {[%emt 00:01:24]} bxc6 {[%clk 00:00:37]}
{[%emt 00:00:30]} 30. Qxa7 {[%clk 00:03:18]} {[%emt 00:01:31]} Qd6 {[%clk
00:00:31]} {[%emt 00:00:35]} 31. Bg5 {[%clk 00:01:59]} {[%emt 00:01:50]} Rf8
{[%clk 00:00:34]} {[%emt 00:00:25]} 32. g4 {[%clk 00:02:02]} {[%emt 00:00:30]}
1-0